fUST/lending_fUST_20250831
["ID","MTS","AMOUNT","RATE_DAILY","PERIOD"]
[382459000,1756635040767,-495.7,0.0001803,2]
[382459002,1756635040776,-1672.77,0.0001803,2]
[382459004,1756635040785,-480.16636785,0.0001803,2]
[382459006,1756635040795,-480.0,0.0001803,2]
[382459008,1756635040804,-480.0,0.0001803,2]
[382459010,1756635040814,-480.0,0.0001803,2]
[382459012,1756635040823,-913.73,0.0001803,2]
[382459014,1756635040832,-480.0,0.0001803,2]
[382459016,1756635040841,-480.0,0.0001803,2]
[382459018,1756635040851,-480.0,0.0001803,2]
[382459020,1756635040860,-480.0,0.0001803,2]
[382459022,1756635040872,-480.0,0.0001803,2]
[382459024,1756635040882,-1837.44,0.0001803,2]
[382459026,1756635040891,-480.0,0.0001803,2]
[382459028,1756635040901,-764.27,0.0001803,2]
[382459030,1756635040910,-480.0,0.0001803,2]
[382459032,1756635040919,-2136.9,0.0001803,2]
[382459034,1756635040928,-480.0,0.0001803,2]
[382459036,1756635040938,-480.0,0.0001803,2]
[382459038,1756635040948,-480.0,0.0001803,2]
[382459040,1756635040964,-665.04,0.0001803,2]
[382459042,1756635040980,-1707.87,0.0001803,2]
[382459044,1756635040990,-480.0,0.0001803,2]
[382459046,1756635040999,-481.37031112,0.0001803,2]
[382459048,1756635041008,-480.0,0.0001803,2]
[382459050,1756635041017,-480.0,0.0001803,2]
[382459052,1756635041026,-480.0,0.0001803,2]
[382459055,1756635041035,-480.0,0.0001803,2]
[382459057,1756635041045,-480.982218,0.0001803,2]
[382459059,1756635041053,-365.31555138,0.0001803,2]
[382459061,1756635041062,-1384.37,0.0001803,2]
[382459063,1756635041071,-576.54,0.0001803,2]
[382459064,1756635041084,-457.77380632,0.0001803,2]
[382459067,1756635041094,-480.0,0.0001803,2]
[382459068,1756635041103,-480.0,0.0001803,2]
[382459070,1756635041114,-533.75,0.0001803,2]
[382459072,1756635041124,-480.0,0.0001803,2]
[382459074,1756635041133,-480.0,0.0001803,2]
[382459077,1756635041142,-601.79,0.0001803,2]
[382459079,1756635041153,-480.0,0.0001803,2]
[382459081,1756635041163,-418.80347517,0.0001803,2]
[382459083,1756635041172,-480.0,0.0001803,2]
[382459085,1756635041180,-480.0,0.0001803,2]
[382459087,1756635041190,-480.0,0.0001803,2]
[382459089,1756635041199,-500.0,0.0001803,2]
[382459091,1756635041208,-500.0,0.0001803,2]
[382459093,1756635041217,-916.14,0.0001803,2]
[382459094,1756635041226,-729.36,0.0001803,2]
[382459096,1756635041235,-579.92,0.0001803,2]
[382459097,1756635041244,-480.0,0.0001803,2]
[382459099,1756635041253,-566.36,0.0001803,2]
[382459100,1756635041262,-480.0,0.0001803,2]
[382459102,1756635041271,-480.0,0.0001803,2]
[382459103,1756635041282,-480.0,0.0001803,2]
[382459105,1756635041291,-464.01780481,0.0001803,2]
[382459106,1756635041300,-1007.45,0.0001803,2]
[382459108,1756635041312,-2564.45,0.0001803,2]
[382459110,1756635041322,-480.0,0.0001803,2]
[382459111,1756635041331,-1819.29,0.0001803,2]
[382459113,1756635041340,-480.0,0.0001803,2]
[382459114,1756635041350,-480.0,0.0001803,2]
[382459116,1756635041359,-935.01,0.0001803,2]
[382459117,1756635041370,-481.8743327,0.0001803,2]
[382459119,1756635041379,-844.59,0.0001803,2]
[382459120,1756635041388,-2250.42,0.0001803,2]
[382459121,1756635041397,-480.0,0.0001803,2]
[382459123,1756635041406,-674.87,0.0001803,2]
[382459125,1756635041419,-2946.04,0.0001803,2]
[382459126,1756635041432,-480.0,0.0001803,2]
[382459128,1756635041441,-480.0,0.0001803,2]
[382459129,1756635041449,-1222.33,0.0001803,2]
[382459131,1756635041459,-480.0,0.0001803,2]
[382459132,1756635041469,-480.0,0.0001803,2]
[382459134,1756635041478,-480.0,0.0001803,2]
[382459136,1756635041487,-480.0,0.0001803,2]
[382459137,1756635041497,-486.65009353,0.0001803,2]
[382459139,1756635041506,-1003.65,0.0001803,2]
[382459141,1756635041515,-480.0,0.0001803,2]
[382459142,1756635041524,-518.11,0.0001803,2]
[382459143,1756635041533,-480.0,0.0001803,2]
[382459145,1756635041543,-151.0,0.0001803,2]
[382459147,1756635041552,-151.0,0.0001803,2]
[382459148,1756635041560,-892.85,0.0001803,2]
[382459150,1756635041570,-480.0,0.0001803,2]
[382459151,1756635041579,-506.66,0.0001803,2]
[382459153,1756635041590,-543.35,0.0001803,2]
[382459155,1756635041598,-179.45001036,0.0001803,2]
[382459156,1756635041607,-925.96,0.0001803,2]
[382459158,1756635041617,-500.0,0.0001803,2]
[382459159,1756635041626,-500.0,0.0001803,2]
[382459161,1756635041636,-1041.77,0.0001803,2]
[382459163,1756635041645,-480.0,0.0001803,2]
[382459164,1756635041654,-481.98236086,0.0001803,2]
[382459166,1756635041664,-484.4394484,0.0001803,2]
[382459167,1756635041673,-480.0,0.0001803,2]
[382459169,1756635041683,-151.0,0.0001803,2]
[382459171,1756635041693,-482.2012894,0.0001803,2]
[382459172,1756635041702,-599.79,0.0001803,2]
[382459174,1756635041711,-480.0,0.0001803,2]
[382459175,1756635041721,-268.76781147,0.0001803,2]
[382459177,1756635041732,-1374.72,0.0001803,2]
[382459179,1756635041742,-778.0,0.0001803,2]
[382459180,1756635041751,-480.0,0.0001803,2]
[382459182,1756635041760,-480.0,0.0001803,2]
[382459183,1756635041769,-480.0,0.0001803,2]
[382459185,1756635041779,-480.0,0.0001803,2]
[382459187,1756635041789,-738.36,0.0001803,2]
[382459188,1756635041798,-949.6,0.0001803,2]
[382459190,1756635041808,-480.0,0.0001803,2]
[382459191,1756635041817,-151.0,0.0001803,2]
[382459193,1756635041828,-768.31,0.0001803,2]
[382459195,1756635041837,-583.68,0.0001803,2]
[382459196,1756635041846,-500.0,0.0001803,2]
[382459198,1756635041856,-500.0,0.0001803,2]
[382459200,1756635041866,-480.0,0.0001803,2]
[382459201,1756635041875,-535.44,0.0001803,2]
[382459203,1756635041885,-512.56,0.0001803,2]
[382459204,1756635041895,-480.0,0.0001803,2]
[382459206,1756635041904,-480.0,0.0001803,2]
[382459207,1756635041914,-151.0,0.0001803,2]
[382459209,1756635041924,-601.76,0.0001803,2]
[382459211,1756635041933,-480.0,0.0001803,2]
[382459212,1756635041943,-1550.12,0.0001803,2]
[382459214,1756635041952,-1940.32,0.0001803,2]
[382459215,1756635041963,-151.0,0.0001803,2]
[382459217,1756635041973,-480.0,0.0001803,2]
[382459219,1756635041982,-480.0,0.0001803,2]
[382459220,1756635041993,-570.35,0.0001803,2]
[382459222,1756635042002,-480.0,0.0001803,2]
[382459223,1756635042011,-480.0,0.0001803,2]
[382459225,1756635042020,-480.0,0.0001803,2]
[382459227,1756635042030,-154.702727,0.0001803,2]
[382459228,1756635042040,-480.0,0.0001803,2]
[382459230,1756635042049,-151.0,0.0001803,2]
[382459231,1756635042058,-480.0,0.0001803,2]
[382459233,1756635042068,-1225.05,0.0001803,2]
[382459235,1756635042081,-501.86,0.0001803,2]
[382459236,1756635042091,-480.0,0.0001803,2]
[382459238,1756635042101,-1843.78,0.0001803,2]
[382459239,1756635042111,-1513.89,0.0001803,2]
[382459241,1756635042122,-151.0,0.0001803,2]
[382459243,1756635042131,-480.0,0.0001803,2]
[382459244,1756635042141,-445.54626521,0.0001803,2]
[382459246,1756635042151,-1297.72,0.0001803,2]
[382459247,1756635042161,-270.445229,0.0001803,2]
[382459249,1756635042171,-480.0,0.0001803,2]
[382459251,1756635042181,-165.925572,0.0001803,2]
[382459252,1756635042191,-480.0,0.0001803,2]
[382459254,1756635042200,-480.0,0.0001803,2]
[382459255,1756635042209,-554.55,0.0001803,2]
[382459257,1756635042219,-1794.98,0.0001803,2]
[382459259,1756635042229,-1782.93,0.0001803,2]
[382459260,1756635042238,-480.0,0.0001803,2]
[382459262,1756635042247,-480.0,0.0001803,2]
[382459264,1756635042256,-480.0,0.0001803,2]
[382459265,1756635042265,-1959.04,0.0001803,2]
[382459267,1756635042274,-480.0,0.0001803,2]
[382459268,1756635042283,-1562.44,0.0001803,2]
[382459270,1756635042292,-480.0,0.0001803,2]
[382459272,1756635042301,-480.0,0.0001803,2]
[382459273,1756635042310,-151.0,0.0001803,2]
[382459275,1756635042319,-480.0,0.0001803,2]
[382459276,1756635042328,-906.98,0.0001803,2]
[382459278,1756635042337,-480.0,0.0001803,2]
[382459279,1756635042346,-480.0,0.0001803,2]
[382459281,1756635042355,-480.0,0.0001803,2]
[382459283,1756635042365,-1572.18,0.0001803,2]
[382459285,1756635042374,-151.0,0.0001803,2]
[382459287,1756635042383,-151.0,0.0001803,2]
[382459288,1756635042392,-151.0,0.0001803,2]
[382459289,1756635042402,-151.0,0.0001803,2]
[382459290,1756635042411,-480.0,0.0001803,2]
[382459291,1756635042421,-279.423575,0.0001803,2]
[382459292,1756635042433,-650.9,0.0001803,2]
[382459293,1756635042442,-480.0,0.0001803,2]
[382459294,1756635042452,-151.0,0.0001803,2]
[382459295,1756635042463,-858.19,0.0001803,2]
[382459296,1756635042472,-1869.57,0.0001803,2]
[382459297,1756635042481,-151.0,0.0001803,2]
[382459298,1756635042491,-2000.0,0.0001803,15]
[382459299,1756635042500,-280.70832157,0.0001803,15]
[382459300,1756635042510,-151.0,0.0001803,2]
[382459301,1756635042519,-151.0,0.0001803,2]
[382459302,1756635042528,-480.0,0.0001803,2]
[382459303,1756635042537,-485.65022059,0.0001803,2]
[382459304,1756635042546,-645.38,0.0001803,2]
[382459305,1756635042554,-480.0,0.0001803,2]
[382459306,1756635042563,-2086.47,0.0001803,2]
[382459308,1756635042572,-12905.7,0.0001803,2]
[382459309,1756635042581,-480.0,0.0001803,2]
[382459310,1756635042591,-480.0,0.0001803,2]
[382459312,1756635042602,-1542.0,0.0001803,2]
[382459313,1756635042612,-812.35,0.0001803,2]
[382459315,1756635042621,-151.0,0.0001803,2]
[382459317,1756635042630,-480.0,0.0001803,2]
[382459319,1756635042639,-1949.26,0.0001803,2]
[382459321,1756635042649,-500.0,0.0001803,2]
[382459323,1756635042659,-480.0,0.0001803,2]
[382459325,1756635042669,-500.0,0.0001803,2]
[382459327,1756635042678,-151.60746108,0.0001803,2]
[382459329,1756635042687,-480.0,0.0001803,2]
[382459331,1756635042699,-500.0,0.0001803,2]
[382459333,1756635042708,-1485.55,0.0001803,2]
[382459335,1756635042718,-151.0,0.0001803,2]
[382459337,1756635042728,-480.0,0.0001803,2]
[382459339,1756635042737,-151.0,0.0001803,2]
[382459341,1756635042746,-480.0,0.0001803,2]
[382459344,1756635042756,-480.0,0.0001803,2]
[382459346,1756635042767,-480.0,0.0001803,2]
[382459348,1756635042776,-151.0,0.0001803,2]
[382459350,1756635042786,-480.0,0.0001803,2]
[382459352,1756635042795,-254.252658,0.0001803,2]
[382459354,1756635042804,-480.0,0.0001803,2]
[382459356,1756635042813,-652.143732,0.0001803,2]
[382459358,1756635042822,-151.0,0.0001803,2]
[382459360,1756635042833,-151.0,0.0001803,2]
[382459362,1756635042842,-151.0,0.0001803,2]
[382459364,1756635042851,-1693.91,0.0001803,2]
[382459366,1756635042861,-229.118611,0.0001803,2]
[382459368,1756635042871,-7621.64,0.0001803,2]
[382459370,1756635042881,-480.0,0.0001803,2]
[382459372,1756635042890,-173.13617814,0.0001803,2]
[382459374,1756635042899,-229.118611,0.0001803,2]
[382459376,1756635042908,-480.0,0.0001803,2]
[382459378,1756635042917,-229.118611,0.0001803,2]
[382459380,1756635042926,-1000.0,0.00018031,2]
[382459382,1756635042936,-1000.0,0.00018031,2]
[382459384,1756635042945,-1000.0,0.00018031,2]
[382459386,1756635042955,-1000.0,0.00018031,2]
[382459389,1756635042964,-1000.0,0.00018031,2]
[382459392,1756635042973,-1000.0,0.00018031,2]
[382459394,1756635042982,-1000.0,0.00018031,2]
[382459396,1756635042991,-1000.0,0.00018031,2]
[382459398,1756635043000,-1000.0,0.00018031,2]
[382459399,1756635043009,-1000.0,0.00018031,2]
[382459403,1756635043019,-1000.0,0.00018031,2]
[382459405,1756635043028,-1000.0,0.00018031,2]
[382459408,1756635043037,-1000.0,0.00018031,2]
[382459411,1756635043046,-1000.0,0.00018031,2]
[382459414,1756635043056,-1000.0,0.00018031,2]
[382459416,1756635043065,-1000.0,0.00018031,2]
[382459418,1756635043077,-1000.0,0.00018031,2]
[382459420,1756635043087,-1000.0,0.00018031,2]
[382459422,1756635043096,-720.78824563,0.00018031,2]
[382459424,1756635043105,-151.0,0.00018031,2]
[382459426,1756635043115,-174.328887,0.00018031,2]
[382459428,1756635043125,-151.0,0.00018031,2]
[382459430,1756635043134,-169.664587,0.00018031,2]
[382459432,1756635043144,-151.0,0.00018031,2]
[382459434,1756635043154,-151.0,0.00018031,2]
[382459436,1756635043163,-500.0,0.00018031,2]
[382459438,1756635043172,-500.0,0.00018031,2]
[382459440,1756635043182,-500.0,0.00018031,2]
[382459442,1756635043191,-559.54265065,0.00018031,2]
[382459444,1756635043201,-151.0,0.00018031,2]
[382459461,1756635043360,-151.0,0.00018031,2]
[382459464,1756635043584,-500.0,0.00018031,2]
[382459466,1756635043593,-500.0,0.00018031,2]
[382459468,1756635043603,-500.47681387,0.00018031,2]
[382459470,1756635043612,-200.64869876,0.00018031,2]
[382459472,1756635043622,-2815.58284374,0.00018031,2]
[382459474,1756635043631,-2129.48393468,0.00018032,2]
[382459476,1756635043640,-480.0,0.00018032,2]
[382459477,1756635043649,-480.0,0.00018032,2]
[382459480,1756635043659,-555.84,0.00018032,2]
[382459481,1756635043669,-480.0,0.00018032,2]
[382459483,1756635043679,-480.0,0.00018032,2]
[382459485,1756635043689,-480.0,0.00018032,2]
[382459487,1756635043698,-480.0,0.00018032,2]
[382459489,1756635043707,-480.0,0.00018032,2]
[382459491,1756635043717,-923.58,0.00018032,2]
[382459493,1756635043727,-151.0,0.00018032,2]
[382459495,1756635043737,-151.0,0.00018032,2]
[382459497,1756635043747,-151.0,0.00018032,2]
[382459499,1756635043757,-721.32,0.00018032,2]
[382459501,1756635043767,-185.876676,0.00018032,2]
[382459503,1756635043777,-555.57,0.00018032,2]
[382459505,1756635043786,-185.876676,0.00018032,2]
[382459507,1756635043795,-185.876676,0.00018032,2]
[382459509,1756635043805,-185.876676,0.00018032,2]
[382459511,1756635043814,-480.0,0.00018032,2]
[382459513,1756635043823,-1455.08,0.00018032,2]
[382459515,1756635043832,-480.0,0.00018032,2]
[382459517,1756635043841,-151.0,0.00018032,2]
[382459519,1756635043851,-638.49,0.00018032,2]
[382459521,1756635043861,-151.0,0.00018032,2]
[382459523,1756635043872,-151.0,0.00018032,2]
[382459525,1756635043882,-887.51,0.00018032,2]
[382459528,1756635043891,-151.943352,0.00018032,2]
[382459530,1756635043901,-847.23,0.00018032,2]
[382459532,1756635043911,-151.0,0.00018032,2]
[382459534,1756635043919,-822.0,0.00018032,2]
[382459536,1756635043929,-480.72266844,0.00018032,2]
[382459537,1756635043938,-411.47985354,0.00018032,2]
[382459539,1756635043948,-1171.81,0.00018032,2]
[382459541,1756635043957,-480.0,0.00018032,2]
[382459543,1756635043967,-1569.43,0.00018032,2]
[382459545,1756635043977,-727.79,0.00018032,2]
[382459547,1756635043986,-151.0,0.00018032,2]
[382459549,1756635043996,-151.0,0.00018032,2]
[382459551,1756635044006,-151.0,0.00018032,2]
[382459553,1756635044016,-567.43,0.00018032,2]
[382459555,1756635044025,-151.0,0.00018032,2]
[382459557,1756635044035,-151.0,0.00018032,2]
[382459559,1756635044044,-480.0,0.00018032,2]
[382459561,1756635044054,-1815.96,0.00018032,2]
[382459563,1756635044064,-480.0,0.00018032,2]
[382459566,1756635044075,-481.80391927,0.00018032,2]
[382459568,1756635044086,-480.0,0.00018032,2]
[382459570,1756635044095,-1603.31,0.00018032,2]
[382459572,1756635044106,-740.8,0.00018032,2]
[382459574,1756635044115,-151.0,0.00018032,2]
[382459575,1756635044124,-151.0,0.00018032,2]
[382459577,1756635044134,-480.0,0.00018032,2]
[382459579,1756635044144,-151.0,0.00018032,2]
[382459581,1756635044154,-151.0,0.00018032,2]
[382459583,1756635044164,-1973.57,0.00018032,2]
[382459585,1756635044173,-590.8,0.00018032,2]
[382459587,1756635044183,-706.43,0.00018032,2]
[382459589,1756635044193,-151.0,0.00018032,2]
[382459592,1756635044203,-151.0,0.00018032,2]
[382459594,1756635044212,-500.0,0.00018032,2]
[382459596,1756635044221,-151.61138015,0.00018032,2]
[382459598,1756635044231,-154.81963238,0.00018032,2]
[382459600,1756635044240,-151.0,0.00018032,2]
[382459602,1756635044249,-151.0,0.00018032,2]
[382459604,1756635044258,-201.51520989,0.00018032,2]
[382459606,1756635044267,-151.0,0.00018032,2]
[382459608,1756635044280,-151.00466912,0.00018032,2]
[382459610,1756635044289,-272.23210294,0.00018032,2]
[382459612,1756635044298,-480.0,0.00018032,2]
[382459614,1756635044307,-500.74,0.00018032,2]
[382459616,1756635044316,-151.0,0.00018032,2]
[382459618,1756635044325,-1661.42,0.00018032,2]
[382459620,1756635044334,-480.0,0.00018032,2]
[382459622,1756635044343,-504.98,0.00018032,2]
[382459624,1756635044353,-151.0,0.00018032,2]
[382459625,1756635044362,-151.0,0.00018032,2]
[382459628,1756635044372,-2898.88,0.00018032,2]
[382459629,1756635044382,-151.0,0.00018032,2]
[382459631,1756635044391,-1737.4,0.00018032,2]
[382459633,1756635044401,-151.0,0.00018032,2]
[382459635,1756635044410,-500.0,0.00018032,2]
[382459637,1756635044419,-151.0,0.00018032,2]
[382459639,1756635044428,-151.0,0.00018032,2]
[382459641,1756635044438,-151.0,0.00018032,2]
[382459643,1756635044447,-151.0,0.00018032,2]
[382459645,1756635044456,-159.226158,0.00018032,2]
[382459647,1756635044467,-500.0,0.00018032,2]
[382459649,1756635044476,-930.35,0.00018032,2]
[382459651,1756635044485,-151.0,0.00018032,2]
[382459653,1756635044495,-151.0,0.00018032,2]
[382459656,1756635044504,-151.0,0.00018032,2]
[382459657,1756635044514,-151.0,0.00018032,2]
[382459659,1756635044523,-151.0,0.00018032,2]
[382459661,1756635044533,-151.0,0.00018032,2]
[382459664,1756635044544,-858.4,0.00018032,2]
[382459666,1756635044553,-1853.64,0.00018032,2]
[382459668,1756635044562,-480.0,0.00018032,2]
[382459669,1756635044574,-1059.09,0.00018032,2]
[382459671,1756635044583,-480.0,0.00018032,2]
[382459674,1756635044593,-480.0,0.00018032,2]
[382459675,1756635044602,-480.0,0.00018032,2]
[382459677,1756635044611,-287.782845,0.00018032,2]
[382459679,1756635044621,-238.03301617,0.00018032,2]
[382459681,1756635044630,-480.0,0.00018032,2]
[382459683,1756635044639,-480.0,0.00018032,2]
[382459685,1756635044649,-480.0,0.00018032,2]
[382459687,1756635044658,-628.21,0.00018032,2]
[382459689,1756635044668,-1399.32,0.00018032,2]
[382459691,1756635044678,-480.0,0.00018032,2]
[382459693,1756635044687,-151.0,0.00018032,2]
[382459695,1756635044697,-151.0,0.00018032,2]
[382459697,1756635044707,-151.0,0.00018032,2]
[382459699,1756635044717,-151.0,0.00018032,2]
[382459701,1756635044726,-151.0,0.00018032,2]
[382459703,1756635044736,-580.87,0.00018032,2]
[382459705,1756635044746,-9809.04,0.00018032,2]
[382459707,1756635044756,-1223.71,0.00018032,2]
[382459709,1756635044766,-3702.65,0.00018032,2]
[382459711,1756635044775,-737.04,0.00018032,2]
[382459713,1756635044784,-151.0,0.00018032,2]
[382459715,1756635044794,-480.0,0.00018032,2]
[382459717,1756635044803,-1881.33,0.00018032,2]
[382459719,1756635044813,-151.0,0.00018032,2]
[382459721,1756635044822,-480.0,0.00018032,2]
[382459723,1756635044832,-167.076088,0.00018032,2]
[382459725,1756635044841,-1688.46,0.00018032,2]
[382459727,1756635044850,-1243.99,0.00018032,2]
[382459729,1756635044860,-481.47897705,0.00018032,2]
[382459732,1756635044871,-2083.98,0.00018032,2]
[382459734,1756635044881,-831.83,0.00018032,2]
[382459736,1756635044890,-1590.12,0.00018032,2]
[382459738,1756635044899,-480.0,0.00018032,2]
[382459740,1756635044908,-496.54,0.00018032,2]
[382459742,1756635044918,-9350.55,0.00018032,2]
[382459744,1756635044927,-504.7,0.00018032,2]
[382459746,1756635044937,-480.0,0.00018032,2]
[382459748,1756635044947,-481.182224,0.00018032,2]
[382459750,1756635044956,-4682.5,0.00018032,2]
[382459752,1756635044967,-480.0,0.00018032,2]
[382459754,1756635044977,-4607.93,0.00018032,2]
[382459756,1756635044986,-1076.16,0.00018032,2]
[382459758,1756635044995,-151.0,0.00018032,2]
[382459760,1756635045004,-151.0,0.00018032,2]
[382459762,1756635045014,-618.42,0.00018032,2]
[382459764,1756635045023,-480.0,0.00018032,2]
[382459766,1756635045032,-151.0,0.00018032,2]
[382459768,1756635045042,-1473.14,0.00018032,2]
[382459769,1756635045051,-480.0,0.00018032,2]
[382459770,1756635045060,-984.47,0.00018032,2]
[382459771,1756635045070,-151.0,0.00018032,2]
[382459772,1756635045083,-605.84,0.00018032,2]
[382459773,1756635045092,-151.0,0.00018032,2]
[382459774,1756635045102,-598.65,0.00018032,2]
[382459775,1756635045111,-480.0,0.00018032,2]
[382459776,1756635045121,-902.36,0.00018032,2]
[382459777,1756635045130,-6863.46,0.00018032,2]
[382459778,1756635045139,-2642.58,0.00018032,2]
[382459779,1756635045148,-1317.7,0.00018032,2]
[382459780,1756635045157,-565.23,0.00018032,2]
[382459781,1756635045167,-1092.28,0.00018032,2]
[382459784,1756635045177,-872.85,0.00018032,2]
[382459785,1756635045187,-151.343345,0.00018032,2]
[382459788,1756635045197,-568.55,0.00018032,2]
[382459790,1756635045207,-151.0,0.00018032,2]
[382459792,1756635045216,-151.0,0.00018032,2]
[382459794,1756635045225,-151.0,0.00018032,2]
[382459796,1756635045235,-151.0,0.00018032,2]
[382459798,1756635045244,-151.0,0.00018032,2]
[382459800,1756635045254,-151.0,0.00018032,2]
[382459802,1756635045263,-151.83901,0.00018032,2]
[382459804,1756635045272,-480.0,0.00018032,2]
[382459806,1756635045281,-151.158634,0.00018032,2]
[382459808,1756635045290,-882.2,0.00018032,2]
[382459810,1756635045300,-480.0,0.00018032,2]
[382459812,1756635045309,-151.0,0.00018032,2]
[382459814,1756635045318,-151.0,0.00018032,2]
[382459815,1756635045327,-151.0,0.00018032,2]
[382459817,1756635045336,-151.0,0.00018032,2]
[382459819,1756635045345,-2155.02,0.00018032,2]
[382459821,1756635045354,-151.0,0.00018032,2]
[382459823,1756635045364,-212.672836,0.00018032,2]
[382459825,1756635045373,-906.01,0.00018032,2]
[382459827,1756635045382,-266.07364189,0.00018032,2]
[382459829,1756635045391,-1284.0,0.00018032,2]
[382459831,1756635045401,-1000.0,0.00018032,2]
[382459833,1756635045411,-1000.0,0.00018032,2]
[382459835,1756635045422,-1000.0,0.00018032,2]
[382459837,1756635045431,-1000.0,0.00018032,2]
[382459839,1756635045440,-1000.0,0.00018032,2]
[382459841,1756635045449,-1000.0,0.00018032,2]
[382459843,1756635045458,-1000.0,0.00018032,2]
[382459845,1756635045467,-2163.1,0.00018032,2]
[382459847,1756635045476,-184.038744,0.00018032,2]
[382459849,1756635045486,-1000.0,0.00018032,2]
[382459851,1756635045495,-1000.0,0.00018032,2]
[382459853,1756635045504,-1000.0,0.00018032,2]
[382459856,1756635045514,-1167.98,0.00018032,2]
[382459858,1756635045523,-1000.0,0.00018032,2]
[382459859,1756635045533,-151.0,0.00018032,2]
[382459861,1756635045542,-1000.0,0.00018032,2]
[382459863,1756635045551,-151.0,0.00018032,2]
[382459865,1756635045562,-1000.0,0.00018032,2]
[382459867,1756635045571,-1000.0,0.00018032,2]
[382459869,1756635045580,-1000.0,0.00018032,2]
[382459871,1756635045590,-1000.0,0.00018032,2]
[382459873,1756635045600,-1000.0,0.00018032,2]
[382459875,1756635045610,-1000.0,0.00018032,2]
[382459877,1756635045620,-1000.0,0.00018032,2]
[382459879,1756635045630,-1000.0,0.00018032,2]
[382459881,1756635045639,-1000.0,0.00018032,2]
[382459883,1756635045648,-1000.0,0.00018032,2]
[382459885,1756635045657,-1000.0,0.00018032,2]
[382459886,1756635045666,-1000.0,0.00018032,2]
[382459888,1756635045675,-868.837679,0.00018032,2]
[382459890,1756635045684,-160.424535,0.00018032,2]
[382459892,1756635045693,-151.0,0.00018032,2]
[382459894,1756635045703,-1358.67,0.00018032,2]
[382459896,1756635045712,-151.0,0.00018032,2]
[382459898,1756635045721,-151.0,0.00018032,2]
[382459900,1756635045730,-178.660336,0.00018032,2]
[382459901,1756635045740,-229.118611,0.00018032,2]
[382459903,1756635045749,-229.118611,0.00018032,2]
[382459905,1756635045759,-229.118611,0.00018032,2]
[382459907,1756635045768,-229.118611,0.00018032,2]
[382459909,1756635045776,-652.143732,0.00018032,2]
[382459911,1756635045786,-652.143732,0.00018032,2]
[382459913,1756635045795,-3028.397421,0.00018038,2]
[382459915,1756635045804,-628.21,0.00018038,2]
[382459917,1756635045813,-628.21,0.00018038,2]
[382459919,1756635045822,-628.21,0.00018038,2]
[382459921,1756635045831,-1033.69,0.00018039,2]
[382459923,1756635045841,-480.0,0.00018039,2]
[382459925,1756635045850,-480.88586375,0.00018039,2]
[382459927,1756635045860,-480.0,0.00018039,2]
[382459929,1756635045869,-191.45152546,0.00018039,2]
[382459931,1756635045878,-480.77654323,0.00018039,2]
[382459933,1756635045887,-480.0,0.00018039,2]
[382459935,1756635045896,-480.0,0.00018039,2]